bitfinex/quotes_ETHUSD_20250413
["timestamp","ask_amount","ask_price","bid_price","bid_amount"]
[1744507569921,0.02,1643.4,1643.3,13.36765271]
[1744507570628,0.02,1643.4,1643.3,16.36765271]
[1744507570629,1e-05,1643.4,1643.3,16.36765271]
[1744507570923,0.7592,1644.3,1644.0,0.8102]
[1744507571127,0.02,1644.4,1644.3,6.08161]
[1744507571330,0.02,1644.4,1644.3,7.297969]
[1744507571621,0.02,1644.4,1644.3,8.108169]
[1744507572123,0.02,1644.4,1644.3,2.026559]
[1744507572324,0.02,1644.4,1644.2,6.08198]
[1744507572487,0.02,1644.4,1644.3,6.08161]
[1744507572888,0.02,1644.4,1644.3,6.049]
[1744507573191,0.02,1644.4,1644.3,12.13061]
[1744507573530,0.02,1644.4,1644.3,13.951849]
[1744507576325,0.02,1644.4,1644.3,14.702049]
[1744507576489,0.02,1644.4,1644.3,20.10510148]
[1744507576696,0.02,1644.4,1644.3,17.702049]
[1744507579399,0.02,1644.4,1644.3,16.951849]
[1744507581535,0.02,1644.4,1644.3,13.951849]
[1744507581734,0.02,1644.4,1644.3,14.759449]
[1744507583335,0.02,1644.4,1644.3,17.759449]
[1744507585430,0.02,1644.4,1644.3,21.309449]
[1744507585600,0.02,1644.4,1644.3,21.4993608]
[1744507585797,0.02,1644.4,1644.3,20.9493608]
[1744507586001,0.02,1644.4,1644.3,20.759449]
[1744507586333,0.02,1644.4,1644.3,10.902849]
[1744507586651,0.02,1644.4,1644.3,15.12761]
[1744507587838,0.02,1644.4,1644.1,6.86035]
[1744507588037,0.02,1644.4,1643.7,6.848]
[1744507588038,6.08235,1644.1,1643.7,6.848]
[1744507588238,6.08235,1644.1,1643.7,12.894]
[1744507588239,6.08279,1644.0,1643.7,12.894]
[1744507588400,6.08235,1644.1,1643.8,1.2894]
[1744507589294,0.7795,1643.9,1643.7,6.046]
[1744507589522,0.79,1644.1,1643.7,6.046]
[1744507589800,12.95536,1644.1,1643.7,12.12982]
[1744507590742,6.87264,1644.1,1643.8,6.08344]
[1744507591036,6.87264,1644.1,1643.8,7.904766]
[1744507591231,6.87264,1644.1,1643.8,1.821326]
[1744507591737,0.79,1644.1,1643.8,1.821326]
[1744507591904,0.79,1644.1,1643.8,7.904706]
[1744507593540,6.8724,1644.1,1643.8,7.904706]
[1744507593727,6.8724,1644.1,1643.8,1.821326]
[1744507594437,12.95501,1644.1,1643.8,1.821326]
[1744507595937,0.79,1644.1,1643.8,1.821326]
[1744507596105,0.79,1644.1,1643.8,7.904656]
[1744507596636,0.79,1644.1,1644.0,0.02164168]
[1744507598523,0.79,1644.1,1644.0,3.02164168]
[1744507599443,6.87235,1644.1,1644.0,3.02164168]
[1744507602138,6.87235,1644.1,1644.0,0.02164168]
[1744507605542,0.79,1644.1,1644.0,0.02164168]
[1744507605842,6.87235,1644.1,1644.0,0.02164168]
[1744507610010,6.08235,1644.1,1644.0,0.02164168]
[1744507610221,6.86024,1644.2,1644.0,0.02164168]
[1744507610650,12.94245,1644.2,1644.0,0.02164168]
[1744507611142,6.86024,1644.2,1644.0,0.02164168]
[1744507611346,6.10147,1644.4,1644.0,6.10419168]
[1744507611521,12.18294,1644.4,1644.1,0.61041917]
[1744507611727,6.08166,1644.3,1644.1,0.61041917]
[1744507612118,12.16349,1644.3,1644.1,0.61041917]
[1744507612317,12.16349,1644.3,1644.0,0.02164168]
[1744507612656,6.08201,1644.2,1644.0,0.02164168]
[1744507613752,6.08201,1644.2,1644.1,3.0]
[1744507613938,6.08166,1644.3,1644.1,3.0]
[1744507614447,0.02,1644.4,1644.2,6.8322]
[1744507614647,0.02,1644.4,1644.3,0.68322]
[1744507614847,0.02,1644.4,1644.3,6.76483]
[1744507615020,0.02,1644.4,1644.3,7.89511391]
[1744507616652,0.02,1644.4,1644.3,1.81350391]
[1744507616852,0.02,1644.4,1644.3,1.13028391]
[1744507617431,0.02,1644.4,1644.3,0.37988391]
[1744507618291,0.02,1644.4,1644.3,1.13028391]
[1744507619687,0.02,1644.4,1644.3,0.37988391]
[1744507619861,0.02,1644.4,1644.3,3.37988391]
[1744507620062,0.02,1644.4,1644.3,4.4080593]
[1744507621264,0.02,1644.4,1644.3,10.4896693]
[1744507621672,0.02,1644.4,1644.3,11.2752693]
[1744507622347,0.02,1644.4,1644.3,16.67832178]
[1744507622992,0.02,1644.4,1644.3,16.67828509]
[1744507623791,0.02,1644.4,1644.3,16.12828509]
[1744507623956,0.02,1644.4,1644.3,4.40802261]
[1744507624157,6.10124,1644.4,1644.3,3.37984722]
[1744507624398,11.74749248,1644.4,1644.3,3.37984722]
[1744507624573,11.74749248,1644.4,1644.3,0.18993788]
[1744507625289,6.08235,1644.1,1644.0,0.02164168]
[1744507626490,6.08198,1644.2,1644.0,0.02164168]
[1744507627290,6.89095,1644.1,1644.0,0.02164168]
[1744507632830,0.8086,1644.1,1644.0,0.02164168]
[1744507633331,1.87305248,1644.4,1644.0,6.10432168]
[1744507633539,6.8979,1644.4,1644.0,6.10415168]
[1744507635043,6.8979,1644.4,1644.1,3.0]
[1744507636033,6.8979,1644.4,1644.2,6.08181]
[1744507636034,0.02,1644.4,1644.2,6.08181]
[1744507636224,0.02,1644.4,1644.3,6.83691]
[1744507638259,0.02,1644.4,1644.3,12.23996248]
[1744507638464,6.84865,1645.0,1644.6,6.08028]
[1744507638465,0.7695,1645.0,1644.6,6.08028]
[1744507638631,0.7695,1645.0,1644.6,13.523888]
[1744507639264,0.7695,1645.0,1644.7,6.08006]
[1744507639640,0.7695,1645.0,1644.6,7.443608]
[1744507640558,0.7695,1645.0,1644.7,6.08013]
[1744507640758,0.7695,1645.0,1644.7,12.16012]
[1744507640959,0.7695,1645.0,1644.7,7.4323348]
[1744507641271,0.7695,1645.0,1644.7,13.5123248]
[1744507642572,0.7695,1645.0,1644.7,7.4323348]
[1744507642738,0.7695,1645.0,1644.7,13.5122648]
[1744507642940,0.7695,1645.0,1644.7,7.4322748]
[1744507643442,0.7695,1645.0,1644.7,7.4322648]
[1744507643770,1.85305248,1645.3,1644.8,0.74322648]
[1744507643957,3.0,1645.3,1644.9,6.07919]
[1744507644472,6.07829,1645.2,1644.8,6.07974]
[1744507644676,3.0,1645.3,1645.0,6.07885]
[1744507645278,15.15614,1645.3,1644.8,6.07972]
[1744507645845,9.07792,1645.3,1644.9,3.0]
[1744507646344,9.87782873,1645.4,1644.9,9.07939]
[1744507646672,8.70715248,1645.4,1645.0,6.07899]
[1744507648086,8.70715248,1645.4,1645.0,6.88259]
[1744507648386,14.78493248,1645.4,1645.0,6.07899]
[1744507648689,14.78493248,1645.4,1644.9,15.15866]
[1744507649176,8.70715248,1645.4,1645.0,6.0789]
[1744507649568,2.62955248,1645.4,1645.0,6.0789]
[1744507649875,2.62955248,1645.4,1645.0,13.673573]
[1744507650082,8.70713248,1645.4,1645.0,6.07885]
[1744507650383,14.78497248,1645.4,1644.9,9.07936]
[1744507650557,8.70713248,1645.4,1645.0,6.07901]
[1744507651283,6.83327,1645.1,1644.9,3.0]
[1744507651671,0.7545,1645.1,1644.9,3.0]
[1744507652179,0.7545,1645.1,1644.9,9.07933]
[1744507654298,1.85305248,1645.2,1644.9,9.07933]
[1744507654476,6.83259,1645.3,1644.9,10.595222]
[1744507654681,0.7545,1645.3,1644.9,11.383422]
[1744507654894,0.02,1645.4,1645.3,6.07791]
[1744507656059,0.02,1645.4,1645.1,12.15713]
[1744507656259,0.02,1645.4,1645.2,12.1563]
[1744507656476,0.02,1645.4,1645.2,6.07807]
[1744507656979,0.02,1645.4,1645.2,13.371837]
[1744507658061,0.02,1645.4,1645.1,6.07859]
[1744507658249,0.8334,1645.4,1645.1,6.07859]
[1744507658448,0.8334,1645.4,1645.1,12.15711]
[1744507659387,6.9111,1645.4,1645.0,12.92117]
[1744507659575,6.9111,1645.4,1645.0,6.86717]
[1744507660082,6.07797,1645.3,1644.9,18.21258]
[1744507660288,12.15611,1645.3,1644.9,6.0792]
[1744507660490,0.8134,1645.1,1644.8,12.13372]
[1744507660984,0.8134,1645.1,1644.9,3.0]
[1744507661483,6.89153,1645.3,1644.9,9.07918]
[1744507661699,8.50563235,1645.3,1644.9,6.07918]
[1744507661859,0.8134,1645.3,1645.0,6.07901]
[1744507662270,6.89133,1645.3,1645.0,6.07901]
[1744507662466,6.89133,1645.3,1644.9,6.07934]
[1744507662888,12.15681,1645.2,1644.8,12.13374]
[1744507663392,6.07831,1645.2,1644.8,12.13374]
[1744507663894,6.07831,1645.2,1644.8,20.113554]
[1744507665561,6.07886,1645.1,1644.7,6.86833]
[1744507665755,6.89248,1645.0,1644.7,6.08013]
[1744507666187,0.8134,1645.0,1644.7,6.08013]
[1744507666461,0.8134,1645.0,1644.7,12.16008]
[1744507667771,0.8134,1645.0,1644.8,0.18991284]
[1744507667982,0.8134,1645.0,1644.7,12.16008]
[1744507668187,0.8134,1645.0,1644.7,14.0422908]
[1744507668383,0.8134,1645.0,1644.7,7.9621608]
[1744507668996,6.89255,1645.0,1644.6,12.742518]
[1744507669214,6.07954,1644.9,1644.6,6.662028]
[1744507669413,6.07954,1644.9,1644.6,6.054]
[1744507669710,6.07954,1644.9,1644.5,12.16136]
[1744507670108,6.07954,1644.9,1644.6,0.18992857]
[1744507670315,6.07954,1644.9,1644.6,0.37985714]
[1744507670718,6.07954,1644.9,1644.6,0.18992857]
[1744507670893,6.07954,1644.9,1644.6,7.50545743]
[1744507671576,0.8134,1645.0,1644.7,6.08002]
[1744507671774,6.89248,1645.0,1644.7,6.08002]
[1744507672718,12.97173,1645.0,1644.6,8.13216886]
[1744507672883,6.07941,1644.9,1644.6,8.13216886]
[1744507673082,6.87959,1644.7,1644.3,6.08157]
[1744507673282,6.87959,1644.7,1644.3,12.16314]
[1744507673490,6.07991,1644.8,1644.4,6.08118]
[1744507673709,6.07991,1644.8,1644.5,6.08086]
[1744507674279,6.07903,1645.0,1644.7,6.08007]
[1744507675413,3.7993,1645.1,1644.6,6.0805]
[1744507675599,9.87796,1645.1,1644.7,12.15966]
[1744507675915,15.95685,1645.1,1644.7,6.26972063]
[1744507676111,12.15843,1645.0,1644.7,0.18991063]
[1744507676786,6.07908,1645.0,1644.7,0.18991063]
[1744507677022,6.07908,1645.0,1644.6,12.16075]
[1744507677328,9.87801,1645.1,1644.8,6.0797]
[1744507678600,3.7993,1645.1,1644.8,6.07963]
[1744507679325,9.87797,1645.1,1644.8,6.07963]
[1744507680222,3.7993,1645.1,1644.8,6.07956]
[1744507680526,6.87898,1645.4,1645.0,6.07884]
[1744507680695,6.87898,1645.4,1645.0,7.294659]
[1744507680900,6.07801,1645.3,1644.9,6.07935]
[1744507681099,6.07836,1645.2,1644.9,6.07935]
[1744507682332,12.15628,1645.3,1644.9,6.07935]
[1744507682505,6.07801,1645.3,1644.9,12.15856]
[1744507685143,6.07801,1645.3,1645.0,6.07895]
[1744507685448,6.07801,1645.3,1644.6,6.91164]
[1744507685449,6.07913,1645.0,1644.6,6.91164]
[1744507685648,6.07963,1644.9,1644.5,12.16134]
[1744507685836,6.07963,1644.9,1644.7,0.18991682]
[1744507686038,0.8289,1644.8,1644.7,0.18991682]
[1744507686239,0.8289,1644.8,1644.5,6.08067]
[1744507686414,0.8289,1644.8,1644.5,7.379975]
[1744507686812,6.90881,1644.8,1644.6,0.18992725]
[1744507687053,8.76186248,1644.8,1644.6,0.37985464]
[1744507687249,14.84187248,1644.8,1644.6,0.18992739]
[1744507688449,14.84187248,1644.8,1644.4,6.08111]
[1744507688654,14.84187248,1644.8,1644.4,7.901861]
[1744507690245,6.08028,1644.7,1644.4,1.820751]
[1744507690423,0.8289,1644.7,1644.3,6.045]
[1744507690617,7.93357248,1644.6,1644.2,6.08198]
[1744507691035,6.08052,1644.6,1644.3,0.18996504]
[1744507691352,6.08052,1644.6,1644.3,0.37993008]
[1744507691530,6.08052,1644.6,1644.4,3.0]
[1744507692052,6.90917,1644.7,1644.4,3.0]
[1744507692455,0.8289,1644.9,1644.6,6.08031]
[1744507692961,0.8289,1644.9,1644.6,0.8312]
[1744507693260,6.07977,1644.8,1644.5,6.08085]
[1744507693440,6.08033,1644.7,1644.4,0.908151]
[1744507693636,0.8289,1644.6,1644.3,0.8312]
[1744507693840,6.9097,1644.6,1644.2,6.08194]
[1744507694049,6.08107,1644.5,1644.1,65.11349]
[1744507694256,6.08149,1644.4,1644.2,0.18997926]
[1744507694432,12.16298,1644.4,1644.2,0.18997926]
[1744507694624,12.99188,1644.4,1644.2,0.18997926]
[1744507695032,12.99188,1644.4,1644.1,6.046]
[1744507695430,6.91039,1644.4,1644.1,6.046]
[1744507696359,6.91039,1644.4,1644.0,6.10415168]
[1744507696560,6.91039,1644.4,1644.0,6.79768685]
[1744507696728,6.91039,1644.4,1644.1,6.08232]
[1744507696924,6.91039,1644.4,1644.1,6.27229929]
[1744507698261,6.91039,1644.4,1644.0,6.79768685]
[1744507698262,6.91125,1644.1,1644.0,0.02164168]
[1744507698436,11.210574,1644.1,1644.0,0.02164168]
[1744507698838,0.8289,1644.3,1644.0,0.02164168]
[1744507699041,9.91051,1644.3,1644.0,6.10422168]
[1744507699266,15.99237,1644.3,1644.0,0.02164168]
[1744507699562,6.08235,1644.1,1644.0,0.02164168]
[1744507703980,11.76610248,1644.1,1644.0,0.02164168]
[1744507704199,13.55092373,1644.1,1644.0,0.02164168]
[1744507708382,22.06397621,1644.1,1644.0,1.68e-06]
[1744507708587,20.21092373,1644.1,1644.0,1.68e-06]
[1744507708742,6.08531,1643.3,1642.9,6.86849]
[1744507708943,6.08531,1643.3,1642.9,2.682064]
[1744507709185,7.93888248,1643.2,1642.8,12.13483]
[1744507709391,6.08573,1643.2,1642.8,12.13483]
[1744507710484,12.17168,1643.2,1642.8,12.13483]
[1744507711181,6.08606,1643.1,1642.8,6.048]
[1744507711356,6.08649,1643.0,1642.7,0.7817]
[1744507711556,14.02460248,1643.2,1642.8,6.08713]
[1744507711770,15.72706273,1643.2,1642.8,6.08713]
[1744507711978,15.72706273,1643.2,1642.7,0.7817]
[1744507711979,6.08606,1643.1,1642.7,6.86909]
[1744507714707,6.08606,1643.1,1642.7,12.95637]
[1744507716800,6.08606,1643.1,1642.8,6.08714]
[1744507719104,3.0,1643.3,1643.0,6.08636]
[1744507719335,6.08572,1643.2,1643.0,0.7915]
[1744507720446,6.87675,1643.1,1642.8,0.7915]
[1744507720994,6.0865,1643.0,1642.8,0.7915]
[1744507721441,6.87675,1643.1,1642.8,0.7915]
[1744507723071,12.96307,1643.1,1642.8,0.7915]
[1744507723239,14.259377,1643.1,1642.8,0.7915]
[1744507723542,6.08643,1643.0,1642.8,0.7915]
[1744507724149,3.94005948,1643.1,1642.5,0.7504]
[1744507724300,6.08716,1642.8,1642.3,0.7504]
[1744507724495,6.89313,1642.6,1642.3,0.7504]
[1744507724804,0.8051,1642.6,1642.3,6.08886]
[1744507725004,6.89229,1642.8,1642.4,6.08847]
[1744507725318,6.08756,1642.7,1642.3,6.08894]
[1744507725635,6.08808,1642.6,1642.2,12.17836]
[1744507725840,12.17622,1642.6,1642.2,6.08916]
[1744507726000,6.89353,1642.5,1642.1,12.91209]
[1744507726206,6.89353,1642.5,1642.1,19.0570496]
[1744507727338,6.89353,1642.5,1642.1,19.0568996]
[1744507727647,6.89353,1642.5,1642.1,13.0048996]
[1744507729244,6.89353,1642.5,1642.1,19.0944596]
[1744507730060,0.8051,1642.5,1642.2,6.08919]
[1744507730363,3.0,1642.8,1642.4,6.08849]
[1744507730560,3.0,1642.8,1642.5,6.08815]
[1744507732223,9.08721,1642.8,1642.4,6.08849]
[1744507732424,15.17464,1642.8,1642.4,6.08849]
[1744507732662,6.052,1642.9,1642.6,6.89049]
[1744507735160,12.13881,1642.9,1642.6,6.89049]
[1744507736332,6.052,1642.9,1642.6,6.89047]
[1744507736542,12.13891,1642.9,1642.6,0.8027]
[1744507739858,18.22594,1642.9,1642.5,6.08811]
[1744507740157,18.22594,1642.9,1642.6,0.19016424]
[1744507740563,18.22594,1642.9,1642.5,6.08811]
[1744507740761,18.22594,1642.9,1642.5,7.52320989]
[1744507741167,18.22594,1642.9,1642.6,0.19016325]
[1744507741463,18.22594,1642.9,1642.6,0.38032657]
[1744507741650,18.22594,1642.9,1642.6,0.19016332]
[1744507742164,18.22594,1642.9,1642.5,7.52320989]
[1744507742568,18.22594,1642.9,1642.6,0.1901641]
[1744507742961,12.13891,1642.9,1642.5,7.52320989]
[1744507743170,6.88003,1642.7,1642.3,12.14196]
[1744507743367,6.08808,1642.6,1642.2,6.08934]
[1744507743669,12.17692,1642.5,1642.3,0.19019892]
[1744507744169,12.17692,1642.5,1642.1,6.92723]
[1744507744334,12.17692,1642.5,1642.1,8.834264]
[1744507744667,6.08842,1642.5,1642.2,6.27954183]
[1744507745074,6.08842,1642.5,1642.3,0.19020183]
[1744507745378,6.08795,1642.6,1642.3,0.19020183]
[1744507745599,6.08795,1642.6,1642.2,6.08934]
[1744507745749,6.08795,1642.6,1642.3,0.19019544]
[1744507745950,12.17612,1642.6,1642.3,0.19019544]
[1744507746779,6.08795,1642.6,1642.3,0.19019544]
[1744507746982,6.87987,1642.7,1642.3,6.90693498]
[1744507747192,6.87987,1642.7,1642.3,6.71673954]
[1744507747788,12.96771,1642.7,1642.3,6.71673954]
[1744507747982,6.08792,1642.6,1642.2,6.08934]
[1744507748289,12.17615,1642.6,1642.3,0.19019236]
[1744507748479,6.08792,1642.6,1642.3,0.19019236]
[1744507748649,6.08792,1642.6,1642.2,12.17856]
[1744507749758,6.08792,1642.6,1642.3,0.19019182]
[1744507750099,6.08792,1642.6,1642.2,12.17856]
[1744507750408,6.08792,1642.6,1642.3,6.08894]
[1744507750573,3.0,1642.8,1642.4,6.89072]
[1744507750574,15.17477,1642.8,1642.4,6.89072]
[1744507751112,6.91333,1643.2,1642.7,6.08725]
[1744507751287,6.08534,1643.3,1643.0,0.8024]
[1744507751453,6.08534,1643.3,1642.7,6.08753]
[1744507751454,6.08619,1643.1,1642.8,0.19012547]
[1744507751789,6.08619,1643.1,1642.8,6.27724547]
[1744507751988,6.08619,1643.1,1642.9,0.19012547]
[1744507752293,6.0857,1643.2,1642.9,0.19012547]
[1744507752491,7.56774077,1643.2,1642.9,0.19012547]
[1744507752793,6.91226,1643.4,1643.0,6.88879]
[1744507753189,12.99744,1643.4,1643.0,6.88879]
[1744507753676,6.08574,1643.2,1642.9,6.08674]
[1744507753863,6.08574,1643.2,1642.8,19.02946]
[1744507754062,6.08574,1643.2,1642.8,20.932406]
[1744507754263,6.08574,1643.2,1642.9,0.19011986]
[1744507754462,12.1717,1643.2,1642.9,0.38023992]
[1744507754689,6.08606,1643.1,1642.9,0.38023992]
[1744507754890,6.08606,1643.1,1642.9,0.19011986]
[1744507756007,6.08606,1643.1,1642.8,12.94255]
[1744507758298,6.08574,1643.2,1642.8,12.94236]
[1744507758503,6.08574,1643.2,1642.9,6.08674]
[1744507758993,6.08574,1643.2,1642.8,12.94236]
[1744507758994,6.87961925,1643.2,1642.8,12.94236]
[1744507759200,12.96554925,1643.2,1642.8,12.94236]
[1744507759363,6.87961925,1643.2,1642.8,19.0294]
[1744507759985,6.08696,1642.9,1642.5,18.98637]
[1744507760198,6.84327,1643.1,1642.5,0.7572]
[1744507760395,6.84327,1643.1,1642.7,6.08741]
[1744507760697,6.84327,1643.1,1642.7,12.17476]
[1744507761108,6.84327,1643.1,1642.8,0.7572]
[1744507761318,8.21555693,1643.1,1642.8,0.7572]
[1744507761598,14.30194693,1643.1,1642.8,0.7572]
[1744507761799,8.21555693,1643.1,1642.8,0.7572]
[1744507762898,14.30184693,1643.1,1642.8,0.7572]
[1744507763129,8.21555693,1643.1,1642.7,12.93193]
[1744507763467,0.7572,1643.5,1642.9,0.7572]
[1744507763709,6.84117,1643.7,1643.3,6.08497]
[1744507764092,6.08424,1643.6,1643.3,6.08497]
[1744507764303,12.16868,1643.6,1643.2,6.84287]
[1744507764519,6.08424,1643.6,1643.2,6.84287]
[1744507764682,7.376773,1643.6,1643.2,6.84287]
[1744507765003,0.8236,1643.4,1643.1,6.08601]
[1744507765718,6.90837,1643.5,1643.1,6.08601]
[1744507766108,6.90837,1643.5,1643.1,12.17185]
[1744507767715,6.90837,1643.5,1643.2,6.08565]
[1744507767921,6.90746,1643.7,1643.3,6.89329]
[1744507768215,12.99158,1643.7,1643.3,6.89329]
[1744507769420,6.90746,1643.7,1643.4,6.08485]
[1744507771625,6.08386,1643.7,1643.4,6.08485]
[1744507773707,3.0,1643.8,1643.5,0.808]
[1744507773896,9.08369,1643.8,1643.3,0.808]
[1744507774327,9.08369,1643.8,1643.2,6.08551]
[1744507774328,6.08459,1643.5,1643.2,6.08551]
[1744507774996,12.16942,1643.5,1643.3,3.0]
[1744507775501,6.08551,1643.3,1642.9,12.94668]
[1744507776123,6.08572,1643.2,1642.9,12.94668]
[1744507776433,6.90783,1643.6,1643.2,6.89355]
[1744507776748,12.161,1643.8,1643.2,0.808]
[1744507776749,6.90709,1643.8,1643.2,0.808]
[1744507776895,6.0831,1643.9,1643.6,0.808]
[1744507777100,12.16645,1643.9,1643.6,0.808]
[1744507777325,7.382105,1643.9,1643.5,6.08453]
[1744507778015,6.0831,1643.9,1643.5,6.08453]
[1744507778499,6.0831,1643.9,1643.5,12.16888]
[1744507778828,6.0831,1643.9,1643.5,6.08435]
[1744507779446,12.16643,1643.9,1643.5,6.08435]
[1744507779636,6.0831,1643.9,1643.5,6.08435]
[1744507779800,6.0831,1643.9,1643.5,7.382076]
[1744507780001,6.0831,1643.9,1643.6,1.0]
[1744507780533,12.16644,1643.9,1643.6,1.0]
[1744507782437,6.0831,1643.9,1643.6,1.0]
[1744507784051,12.16643,1643.9,1643.6,1.0]
[1744507784341,6.0831,1643.9,1643.6,1.0]
[1744507786252,6.0831,1643.9,1643.6,7.08415]
[1744507786545,6.08287,1644.0,1643.7,0.7542]
[1744507786969,6.89227,1643.8,1643.6,1.0]
[1744507787153,6.89227,1643.8,1643.4,6.83912]
[1744507787854,6.89227,1643.8,1643.4,12.92384]
[1744507788060,6.89227,1643.8,1643.4,14.86685843]
[1744507788971,6.89227,1643.8,1643.4,8.78193843]
[1744507789154,6.084,1643.7,1643.4,0.7542]
[1744507789359,12.16806,1643.7,1643.3,6.08528]
[1744507789555,6.08421,1643.6,1643.3,6.08528]
[1744507790137,6.084,1643.7,1643.4,3.0]
[1744507790770,6.89209,1643.8,1643.4,9.08494]
[1744507790966,7.93578248,1644.0,1643.6,6.08395]
[1744507791182,6.8478,1644.1,1643.8,6.08344]
[1744507791368,12.93023,1644.1,1643.7,6.08382]
[1744507791566,6.87923,1644.1,1643.7,12.16764]
[1744507796974,6.08274,1644.0,1643.7,6.08382]
[1744507797893,3.0,1644.4,1643.8,0.7975]
[1744507798047,6.11,1645.1,1643.5,7.90205248]
[1744507798048,0.8005,1644.7,1644.3,6.08161]
[1744507798266,0.8005,1644.7,1644.0,6.88022]
[1744507798267,0.8005,1644.7,1644.1,6.0823]
[1744507798471,0.8005,1644.7,1644.4,6.08098]
[1744507798896,6.88063,1644.7,1644.3,6.87911]
[1744507799104,6.07979,1644.8,1644.3,6.87911]
[1744507799105,0.8005,1644.9,1644.3,0.7975]
[1744507799288,0.8005,1644.9,1644.6,6.08018]
[1744507799667,9.88015,1644.9,1644.4,6.08096]
[1744507799985,7.068105,1644.8,1644.3,12.92685]
[1744507800312,0.8005,1644.8,1644.3,6.8455]
[1744507800466,0.8005,1644.8,1644.5,6.08067]
[1744507800666,0.8005,1644.8,1644.5,12.16135]
[1744507801312,0.8005,1644.8,1644.5,6.08067]
[1744507801513,0.8005,1644.8,1644.4,6.08122]
[1744507801514,6.88046,1644.8,1644.4,6.08122]
[1744507801811,7.868451,1644.8,1644.4,6.08122]
[1744507802386,0.8005,1644.8,1644.5,6.08085]
[1744507802869,6.88026,1644.8,1644.5,6.08085]
[1744507803706,6.88026,1644.8,1644.4,6.08109]
[1744507803906,6.08032,1644.7,1644.3,12.12957]
[1744507804270,6.08058,1644.6,1644.3,6.048]
[1744507805011,6.08058,1644.6,1643.9,9.08282]
[1744507805012,6.08161,1644.3,1643.9,6.86255]
[1744507805224,6.08161,1644.3,1643.8,6.047]
[1744507805225,0.7526,1644.2,1643.8,6.047]
[1744507805510,0.7526,1644.2,1643.5,6.07]
[1744507805511,7.93564248,1644.1,1643.6,12.16812]
[1744507805674,6.08273,1644.0,1643.6,12.16812]
[1744507805878,7.93564248,1644.1,1643.7,6.08375]
[1744507806078,0.7526,1643.9,1643.6,6.08396]
[1744507806269,6.83586,1643.9,1643.5,6.047]
[1744507806474,0.7526,1643.9,1643.6,6.08415]
[1744507806704,0.7526,1643.9,1643.5,12.13155]
[1744507806878,0.7526,1643.9,1643.5,14.1046874]
[1744507807215,0.7526,1643.9,1643.5,12.13134]
[1744507807379,6.83583,1643.9,1643.5,12.13134]
[1744507807712,6.83583,1643.9,1643.2,6.046]
[1744507807713,2.60565248,1643.7,1643.2,6.046]
[1744507807878,6.0842,1643.6,1643.2,12.13144]
[1744507808280,6.08462,1643.5,1643.1,6.86521]
[1744507808579,6.83759,1643.4,1643.0,6.08642]
[1744507808907,6.08635,1643.1,1642.6,6.86737]
[1744507809114,6.695135,1643.0,1642.5,12.13427]
[1744507809286,0.7526,1642.9,1642.6,6.08776]
[1744507809489,6.08662,1643.0,1642.6,6.08776]
[1744507809690,0.7567,1642.7,1642.3,6.0887]
[1744507810480,6.84424,1642.7,1642.3,6.0887]
[1744507810682,0.7567,1642.7,1642.3,12.17746]
[1744507810911,0.7567,1642.7,1642.3,14.2108366]
[1744507811113,0.7567,1642.7,1642.3,8.1220766]
[1744507811678,0.7567,1642.9,1642.6,6.08774]
[1744507812091,4.85305248,1643.1,1642.5,6.08828]
[1744507812092,3.0,1643.1,1642.5,6.08828]
[1744507812289,6.84243,1643.2,1642.8,6.08706]
[1744507812610,3.7567,1643.2,1642.9,6.08665]
[1744507812815,8.69464248,1643.5,1643.1,6.08605]
[1744507813020,0.7567,1643.5,1643.2,6.0855]
[1744507813216,3.7567,1643.5,1643.2,6.0855]
[1744507813633,6.08497,1643.4,1643.0,12.17256]
[1744507813800,6.08497,1643.4,1643.0,7.303406]
[1744507813999,6.08497,1643.4,1643.0,6.08615]
[1744507814935,0.7567,1643.5,1642.8,0.8087]
[1744507815091,0.7567,1643.5,1642.9,6.08679]
[1744507815298,6.84128,1643.5,1643.0,6.08638]
[1744507815494,6.84128,1643.5,1643.1,6.08589]
[1744507815920,0.7567,1643.5,1643.1,6.08589]
[1744507816105,0.7567,1643.5,1643.2,6.08554]
[1744507817225,0.7567,1643.5,1643.1,6.08589]
[1744507817527,6.84132,1643.5,1643.1,6.08589]
[1744507817824,6.84132,1643.5,1643.1,12.17169]
[1744507819032,6.84132,1643.5,1643.1,6.0858]
[1744507820525,12.92615,1643.5,1643.2,3.0]
[1744507821840,6.84132,1643.5,1643.2,3.0]
[1744507822445,6.84132,1643.5,1643.2,9.08565]
[1744507822608,6.84132,1643.5,1643.2,3.0]
[1744507825140,12.92614,1643.5,1643.2,3.0]
[1744507825444,6.08591,1643.2,1642.8,12.13614]
[1744507825638,6.08624,1643.1,1642.7,6.08752]
[1744507826225,6.08647,1643.0,1642.7,6.08752]
[1744507826521,6.88697,1643.0,1642.6,6.84346]
[1744507826725,6.0872,1642.8,1642.4,6.08859]
[1744507827022,6.0872,1642.8,1642.4,12.17703]
[1744507829962,6.0872,1642.8,1642.4,12.17695]
[1744507830161,6.0872,1642.8,1642.4,6.08844]
[1744507830458,6.08803,1642.6,1642.2,18.98316]
[1744507830662,7.385638,1642.6,1642.5,2.0]
[1744507831071,6.88804,1642.7,1642.4,6.08864]
[1744507831372,6.88804,1642.7,1642.3,6.08881]
[1744507832273,7.576037,1642.9,1642.6,6.08788]
[1744507833373,6.823985,1642.9,1642.5,6.08825]
[1744507833577,12.911065,1642.9,1642.5,6.08825]